[Event "IV Elllobregat Open Chess Tmnt"]
[Site "Sant Boi de Llobregat, Spain"]
[Date "2023.11.30"]
[Round "1.5"]
[White "Sattarov, Bobir"]
[Black "Vallejo Pons, Francisco"]
[Result "1/2-1/2"]
[TimeControl "90min/40moves + 15min/end + 30sec from move 1"]
[WhiteFideId "14203081"]
[BlackFideId "2205530"]
[WhiteElo "2353"]
[BlackElo "2668"]

1. e4 {[%clk 01:30:56]} {[%emt 00:00:03]} c5 {[%clk 01:30:53]} {[%emt
00:00:07]} 2. Nf3 {[%clk 01:31:20]} {[%emt 00:00:07]} e6 {[%clk 01:31:16]}
{[%emt 00:00:08]} 3. d4 {[%clk 01:31:30]} {[%emt 00:00:20]} cxd4 {[%clk
01:31:35]} {[%emt 00:00:10]} 4. Nxd4 {[%clk 01:31:51]} {[%emt 00:00:08]} Nc6
{[%clk 01:31:56]} {[%emt 00:00:09]} 5. Nc3 {[%clk 01:31:49]} {[%emt 00:00:32]}
a6 {[%clk 01:32:21]} {[%emt 00:00:05]} 6. Be3 {[%clk 01:28:51]} {[%emt
00:03:28]} Nf6 {[%clk 01:31:32]} {[%emt 00:01:19]} 7. Qf3 {[%clk 01:28:07]}
{[%emt 00:01:13]} Bb4 {[%clk 01:26:01]} {[%emt 00:06:01]} 8. Nxc6 {[%clk
01:25:40]} {[%emt 00:02:57]} bxc6 {[%clk 01:25:48]} {[%emt 00:00:42]} 9. Bd3
{[%clk 01:24:14]} {[%emt 00:01:56]} d5 {[%clk 01:16:31]} {[%emt 00:09:48]} 10.
e5 {[%clk 01:14:05]} {[%emt 00:10:39]} Nd7 {[%clk 01:16:22]} {[%emt 00:00:38]}
11. Qg3 {[%clk 01:06:00]} {[%emt 00:08:35]} Kf8 {[%clk 01:05:57]} {[%emt
00:10:55]} 12. O-O {[%clk 01:00:56]} {[%emt 00:05:34]} h5 {[%clk 01:04:30]}
{[%emt 00:01:57]} 13. f4 {[%clk 00:50:35]} {[%emt 00:10:50]} h4 {[%clk
00:59:52]} {[%emt 00:05:09]} 14. Qf2 {[%clk 00:46:22]} {[%emt 00:04:43]} Kg8
{[%clk 00:44:58]} {[%emt 00:15:24]} 15. Na4 {[%clk 00:40:56]} {[%emt 00:05:57]}
a5 {[%clk 00:42:27]} {[%emt 00:03:02]} 16. a3 {[%clk 00:33:38]} {[%emt
00:07:47]} Bf8 {[%clk 00:38:40]} {[%emt 00:04:16]} 17. Nb6 {[%clk 00:30:14]}
{[%emt 00:03:54]} Rb8 {[%clk 00:35:06]} {[%emt 00:04:04]} 18. Nxc8 {[%clk
00:27:13]} {[%emt 00:03:31]} Qxc8 {[%clk 00:35:23]} {[%emt 00:00:13]} 19. b3
{[%clk 00:20:17]} {[%emt 00:07:26]} g6 {[%clk 00:33:37]} {[%emt 00:02:16]} 20.
Kh1 {[%clk 00:18:43]} {[%emt 00:02:05]} Be7 {[%clk 00:28:51]} {[%emt 00:05:16]}
21. h3 {[%clk 00:15:58]} {[%emt 00:03:14]} Qf8 {[%clk 00:26:26]} {[%emt
00:02:55]} 22. Qe2 {[%clk 00:14:08]} {[%emt 00:02:20]} Rh7 {[%clk 00:22:49]}
{[%emt 00:04:07]} 23. Qg4 {[%clk 00:12:16]} {[%emt 00:02:21]} Kh8 {[%clk
00:16:27]} {[%emt 00:06:52]} 24. a4 {[%clk 00:07:25]} {[%emt 00:05:21]} Nc5
{[%clk 00:14:58]} {[%emt 00:01:59]} 25. Bxc5 {[%clk 00:07:30]} {[%emt
00:00:25]} Bxc5 {[%clk 00:15:25]} {[%emt 00:00:03]} 26. Rae1 {[%clk 00:06:49]}
{[%emt 00:01:11]} Qe7 {[%clk 00:14:38]} {[%emt 00:01:17]} 27. Rf3 {[%clk
00:05:46]} {[%emt 00:01:33]} Rb7 {[%clk 00:13:05]} {[%emt 00:02:03]} 28. Ref1
{[%clk 00:05:02]} {[%emt 00:01:13]} Rb4 {[%clk 00:12:55]} {[%emt 00:00:40]} 29.
Re1 {[%clk 00:02:50]} {[%emt 00:02:42]} Rg7 {[%clk 00:12:29]} {[%emt 00:00:57]}
30. g3 {[%clk 00:02:02]} {[%emt 00:01:17]} hxg3 {[%clk 00:11:11]} {[%emt
00:01:48]} 31. Qxg3 {[%clk 00:02:22]} {[%emt 00:00:11]} Rh7 {[%clk 00:11:11]}
{[%emt 00:00:30]} 32. Re2 {[%clk 00:01:49]} {[%emt 00:01:03]} Qh4 {[%clk
00:09:49]} {[%emt 00:01:52]} 33. Kg2 {[%clk 00:01:55]} {[%emt 00:00:24]} Qxg3+
{[%clk 00:07:12]} {[%emt 00:03:07]} 34. Kxg3 {[%clk 00:02:18]} {[%emt
00:00:06]} Be7 {[%clk 00:07:32]} {[%emt 00:00:10]} 35. Rf1 {[%clk 00:01:23]}
{[%emt 00:01:25]} Kg7 {[%clk 00:06:28]} {[%emt 00:01:34]} 36. Rf3 {[%clk
00:01:13]} {[%emt 00:00:40]} Bh4+ {[%clk 00:05:55]} {[%emt 00:01:03]} 37. Kg2
{[%clk 00:01:08]} {[%emt 00:00:36]} Rh8 {[%clk 00:05:50]} {[%emt 00:00:35]} 38.
Rf1 {[%clk 00:01:17]} {[%emt 00:00:20]} Rh5 {[%clk 00:04:38]} {[%emt 00:01:43]}
39. Rf3 {[%clk 00:01:01]} {[%emt 00:00:46]} Kf8 {[%clk 00:03:13]} {[%emt
00:01:54]} 40. Kf1 {[%clk 00:15:39]} {[%emt 00:00:52]} c5 {[%clk 00:17:27]}
{[%emt 00:01:17]} 41. Rg2 {[%clk 00:12:42]} {[%emt 00:03:27]} c4 {[%clk
00:16:27]} {[%emt 00:01:31]} 42. Be2 {[%clk 00:12:53]} {[%emt 00:00:20]} Bd8
{[%clk 00:13:05]} {[%emt 00:03:51]} 43. bxc4 {[%clk 00:07:21]} {[%emt
00:06:02]} dxc4 {[%clk 00:12:50]} {[%emt 00:00:45]} 44. Rc3 {[%clk 00:07:30]}
{[%emt 00:00:22]} Rf5 {[%clk 00:10:01]} {[%emt 00:03:19]} 45. Rf2 {[%clk
00:07:22]} {[%emt 00:00:37]} Bb6 {[%clk 00:09:33]} {[%emt 00:00:57]} 46. Rff3
{[%clk 00:07:37]} {[%emt 00:00:15]} Bd4 {[%clk 00:06:10]} {[%emt 00:03:54]} 47.
Rxc4 {[%clk 00:07:51]} {[%emt 00:00:16]} Rxc4 {[%clk 00:06:22]} {[%emt
00:00:18]} 48. Bxc4 {[%clk 00:08:16]} {[%emt 00:00:05]} Bxe5 {[%clk 00:06:47]}
{[%emt 00:00:05]} 49. Ke2 {[%clk 00:08:06]} {[%emt 00:00:41]} Rxf4 {[%clk
00:06:59]} {[%emt 00:00:17]} 50. Rxf4 {[%clk 00:08:26]} {[%emt 00:00:09]} Bxf4
{[%clk 00:07:28]} {[%emt 00:00:02]} 51. Kd3 {[%clk 00:08:38]} {[%emt 00:00:18]}
Ke7 {[%clk 00:07:21]} {[%emt 00:00:37]} 52. Bb5 {[%clk 00:08:55]} {[%emt
00:00:13]} g5 {[%clk 00:04:33]} {[%emt 00:03:18]} 53. Kc4 {[%clk 00:09:05]}
{[%emt 00:00:20]} f5 {[%clk 00:04:19]} {[%emt 00:00:44]} 54. Kc5 {[%clk
00:08:58]} {[%emt 00:00:37]} Bd2 {[%clk 00:02:02]} {[%emt 00:02:47]} 55. c4
{[%clk 00:08:56]} {[%emt 00:00:32]} Be3+ {[%clk 00:01:16]} {[%emt 00:01:16]} 56.
Kc6 {[%clk 00:09:05]} {[%emt 00:00:21]} f4 {[%clk 00:00:56]} {[%emt 00:00:50]}
57. c5 {[%clk 00:08:45]} {[%emt 00:00:50]} f3 {[%clk 00:01:22]} {[%emt
00:00:04]} 58. Bd3 {[%clk 00:08:20]} {[%emt 00:00:54]} Kf6 {[%clk 00:01:25]}
{[%emt 00:00:27]} 59. Kd6 {[%clk 00:06:56]} {[%emt 00:01:54]} Bf4+ {[%clk
00:01:24]} {[%emt 00:00:31]} 60. Kd7 {[%clk 00:06:48]} {[%emt 00:00:37]} Ke5
{[%clk 00:01:35]} {[%emt 00:00:19]} 61. c6 {[%clk 00:05:25]} {[%emt 00:01:53]}
Kd5 {[%clk 00:00:55]} {[%emt 00:01:10]} 62. Bb5 {[%clk 00:03:56]} {[%emt
00:01:59]} Bb8 {[%emt 00:06:18]} 1/2-1/2

[Event "IV Elllobregat Open Chess Tmnt"]
[Site "Sant Boi de Llobregat, Spain"]
[Date "2023.11.30"]
[Round "1.6"]
[White "Pichot, Alan"]
[Black "Esplugas Esteve, Vicenc"]
[Result "1-0"]
[TimeControl "90min/40moves + 15min/end + 30sec from move 1"]
[WhiteFideId "110973"]
[BlackFideId "22200789"]
[WhiteElo "2650"]
[BlackElo "2348"]

1. c4 {[%clk 01:30:56]} {[%emt 00:00:04]} b6 {[%clk 01:30:47]} {[%emt
00:00:14]} 2. Nc3 {[%clk 01:31:08]} {[%emt 00:00:17]} Bb7 {[%clk 01:31:10]}
{[%emt 00:00:07]} 3. e4 {[%clk 01:31:18]} {[%emt 00:00:20]} e6 {[%clk
01:31:34]} {[%emt 00:00:06]} 4. g3 {[%clk 01:31:25]} {[%emt 00:00:23]} f5
{[%clk 01:31:41]} {[%emt 00:00:22]} 5. Bg2 {[%clk 01:29:26]} {[%emt 00:02:30]}
Nf6 {[%clk 01:31:44]} {[%emt 00:00:27]} 6. d3 {[%clk 01:29:24]} {[%emt
00:00:32]} fxe4 {[%clk 01:31:51]} {[%emt 00:00:23]} 7. Nge2 {[%clk 01:26:07]}
{[%emt 00:03:46]} Nc6 {[%clk 01:31:29]} {[%emt 00:00:52]} 8. Nxe4 {[%clk
01:13:38]} {[%emt 00:12:59]} Nxe4 {[%clk 01:31:20]} {[%emt 00:00:40]} 9. Bxe4
{[%clk 01:13:40]} {[%emt 00:00:28]} Qf6 {[%clk 01:28:32]} {[%emt 00:03:18]} 10.
O-O {[%clk 01:11:06]} {[%emt 00:03:04]} O-O-O {[%clk 01:25:43]} {[%emt
00:03:20]} 11. d4 {[%clk 01:04:52]} {[%emt 00:06:44]} d5 {[%clk 01:17:07]}
{[%emt 00:09:05]} 12. cxd5 {[%clk 01:02:16]} {[%emt 00:03:06]} exd5 {[%clk
01:17:29]} {[%emt 00:00:08]} 13. Bg2 {[%clk 01:02:25]} {[%emt 00:00:21]} g5
{[%clk 01:09:00]} {[%emt 00:08:58]} 14. Nc3 {[%clk 00:53:05]} {[%emt 00:09:51]}
h5 {[%clk 01:00:34]} {[%emt 00:08:56]} 15. Be3 {[%clk 00:34:54]} {[%emt
00:18:41]} Bg7 {[%clk 00:51:07]} {[%emt 00:09:56]} 16. Nxd5 {[%clk 00:24:25]}
{[%emt 00:11:00]} Qf7 {[%clk 00:45:12]} {[%emt 00:06:24]} 17. Qb3 {[%clk
00:23:00]} {[%emt 00:01:57]} Rd7 {[%clk 00:41:29]} {[%emt 00:04:11]} 18. Nc3
{[%clk 00:19:07]} {[%emt 00:04:25]} Nxd4 {[%clk 00:39:17]} {[%emt 00:02:42]} 19.
Qxf7 {[%clk 00:19:17]} {[%emt 00:00:20]} Rxf7 {[%clk 00:39:40]} {[%emt
00:00:06]} 20. Bxb7+ {[%clk 00:08:26]} {[%emt 00:11:21]} Kxb7 {[%clk 00:39:59]}
{[%emt 00:00:10]} 21. Rad1 {[%clk 00:08:48]} {[%emt 00:00:10]} Nf3+ {[%clk
00:38:29]} {[%emt 00:01:59]} 22. Kg2 {[%clk 00:09:13]} {[%emt 00:00:06]} h4
{[%clk 00:34:00]} {[%emt 00:04:59]} 23. h3 {[%clk 00:08:38]} {[%emt 00:01:05]}
g4 {[%clk 00:28:48]} {[%emt 00:05:41]} 24. Bf4 {[%clk 00:07:24]} {[%emt
00:01:45]} hxg3 {[%clk 00:25:22]} {[%emt 00:03:55]} 25. fxg3 {[%clk 00:07:19]}
{[%emt 00:00:35]} Re7 {[%clk 00:20:40]} {[%emt 00:05:11]} 26. hxg4 {[%clk
00:07:14]} {[%emt 00:00:37]} Nh2 {[%clk 00:20:53]} {[%emt 00:00:16]} 27. Rfe1
{[%clk 00:07:06]} {[%emt 00:00:39]} Rxe1 {[%clk 00:19:52]} {[%emt 00:01:31]} 28.
Rxe1 {[%clk 00:07:32]} {[%emt 00:00:04]} Nxg4 {[%clk 00:18:38]} {[%emt
00:01:44]} 29. Re7 {[%clk 00:06:18]} {[%emt 00:01:45]} Bf6 {[%clk 00:18:54]}
{[%emt 00:00:12]} 30. Rxc7+ {[%clk 00:06:21]} {[%emt 00:00:28]} Ka6 {[%clk
00:18:27]} {[%emt 00:00:56]} 31. Kf3 {[%clk 00:03:39]} {[%emt 00:03:13]} Be5
{[%clk 00:16:20]} {[%emt 00:02:36]} 32. Rf7 {[%clk 00:01:00]} {[%emt 00:03:10]}
Bxf4 {[%clk 00:13:22]} {[%emt 00:03:28]} 33. gxf4 {[%clk 00:01:28]} {[%emt
00:00:01]} Nh2+ {[%clk 00:13:02]} {[%emt 00:00:50]} 34. Ke4 {[%clk 00:01:31]}
{[%emt 00:00:27]} Nf1 {[%clk 00:13:21]} {[%emt 00:00:11]} 35. b4 {[%clk
00:00:53]} {[%emt 00:01:09]} Rc8 {[%clk 00:11:34]} {[%emt 00:02:17]} 36. Kd3
{[%clk 00:00:47]} {[%emt 00:00:36]} Rd8+ {[%clk 00:11:35]} {[%emt 00:00:28]} 37.
Kc2 {[%clk 00:00:39]} {[%emt 00:00:38]} b5 {[%clk 00:06:12]} {[%emt 00:05:54]}
38. Re7 {[%emt 00:01:23]} Rd4 {[%clk 00:05:25]} 39. Rxa7+ {[%clk 00:01:17]}
{[%emt 00:00:17]} Kb6 {[%clk 00:05:40]} {[%emt 00:00:15]} 40. Re7 {[%clk
00:15:39]} {[%emt 00:01:07]} Kc6 {[%clk 00:19:08]} {[%emt 00:02:00]} 41. Re6+
{[%clk 00:10:41]} {[%emt 00:05:30]} Kd7 {[%clk 00:19:30]} {[%emt 00:00:06]} 42.
Re4 {[%clk 00:10:44]} {[%emt 00:00:29]} Rd2+ {[%clk 00:19:22]} {[%emt
00:00:37]} 43. Kb3 {[%clk 00:10:25]} {[%emt 00:00:51]} Rf2 {[%clk 00:18:08]}
{[%emt 00:01:44]} 44. Re2 {[%clk 00:09:26]} {[%emt 00:01:29]} Rf3 {[%clk
00:17:19]} {[%emt 00:01:18]} 45. a3 {[%clk 00:07:14]} {[%emt 00:02:43]} Kc6
{[%clk 00:15:41]} {[%emt 00:02:05]} 46. Re5 {[%clk 00:07:14]} {[%emt 00:00:33]}
Nd2+ {[%clk 00:14:19]} {[%emt 00:01:50]} 47. Kc2 {[%clk 00:07:40]} {[%emt
00:00:06]} Nc4 {[%clk 00:13:38]} {[%emt 00:01:09]} 48. Rc5+ {[%clk 00:08:08]}
{[%emt 00:00:04]} Kd7 {[%clk 00:13:48]} {[%emt 00:00:18]} 49. Nxb5 {[%clk
00:08:31]} {[%emt 00:00:08]} Rxf4 {[%clk 00:13:15]} {[%emt 00:01:03]} 50. Kb3
{[%clk 00:08:45]} {[%emt 00:00:17]} Nd2+ {[%clk 00:12:19]} {[%emt 00:01:26]} 51.
Ka4 {[%clk 00:08:06]} {[%emt 00:01:09]} Nc4 {[%clk 00:11:46]} {[%emt 00:01:00]}
52. Nc3 {[%clk 00:06:43]} {[%emt 00:01:56]} Kd6 {[%clk 00:11:32]} {[%emt
00:00:42]} 53. Rd5+ {[%clk 00:06:07]} {[%emt 00:01:08]} Kc6 {[%clk 00:11:20]}
{[%emt 00:00:42]} 54. Kb3 {[%clk 00:06:12]} {[%emt 00:00:25]} Ne3 {[%clk
00:10:26]} {[%emt 00:01:24]} 55. Rc5+ {[%clk 00:05:34]} {[%emt 00:01:09]} Kb7
{[%clk 00:10:50]} {[%emt 00:00:05]} 56. Nd5 {[%clk 00:05:48]} {[%emt 00:00:17]}
Nxd5 {[%clk 00:10:49]} {[%emt 00:00:31]} 57. Rxd5 {[%clk 00:06:12]} {[%emt
00:00:05]} Rf3+ {[%clk 00:11:14]} {[%emt 00:00:05]} 58. Ka4 {[%clk 00:06:33]}
{[%emt 00:00:09]} Kb6 {[%clk 00:11:33]} {[%emt 00:00:10]} 59. Rd6+ {[%clk
00:06:53]} {[%emt 00:00:10]} 1-0

[Event "IV Elllobregat Open Chess Tmnt"]
[Site "Sant Boi de Llobregat, Spain"]
[Date "2023.11.30"]
[Round "1.7"]
[White "Mathieu, Phileas"]
[Black "Aravindh, Chithambaram Vr."]
[Result "0-1"]
[TimeControl "90min/40moves + 15min/end + 30sec from move 1"]
[WhiteFideId "36048410"]
[BlackFideId "5072786"]
[WhiteElo "2346"]
[BlackElo "2638"]

1. e4 {[%clk 01:30:52]} {[%emt 00:00:07]} c5 {[%clk 01:30:50]} {[%emt
00:00:11]} 2. Nf3 {[%clk 01:31:16]} {[%emt 00:00:06]} e6 {[%clk 01:31:05]}
{[%emt 00:00:15]} 3. d4 {[%clk 01:31:37]} {[%emt 00:00:09]} cxd4 {[%clk
01:31:27]} {[%emt 00:00:08]} 4. Nxd4 {[%clk 01:32:04]} {[%emt 00:00:03]} a6
{[%clk 01:29:24]} {[%emt 00:02:32]} 5. c4 {[%clk 01:31:23]} {[%emt 00:01:11]}
Nf6 {[%clk 01:29:41]} {[%emt 00:00:13]} 6. Bd3 {[%clk 01:30:15]} {[%emt
00:01:39]} d6 {[%clk 01:27:41]} {[%emt 00:02:29]} 7. Nc3 {[%clk 01:29:47]}
{[%emt 00:00:58]} b6 {[%clk 01:26:45]} {[%emt 00:01:26]} 8. O-O {[%clk
01:29:55]} {[%emt 00:00:22]} Bb7 {[%clk 01:26:56]} {[%emt 00:00:19]} 9. Be3
{[%clk 01:27:29]} {[%emt 00:02:56]} Nbd7 {[%clk 01:22:59]} {[%emt 00:04:27]} 10.
Rc1 {[%clk 01:19:49]} {[%emt 00:08:11]} g6 {[%clk 01:14:48]} {[%emt 00:08:41]}
11. f3 {[%clk 01:16:21]} {[%emt 00:03:58]} Bg7 {[%clk 01:14:27]} {[%emt
00:00:50]} 12. Rf2 {[%clk 01:06:49]} {[%emt 00:10:02]} O-O {[%clk 01:13:47]}
{[%emt 00:01:10]} 13. Bf1 {[%clk 01:03:49]} {[%emt 00:03:31]} Re8 {[%clk
01:13:51]} {[%emt 00:00:26]} 14. Nc2 {[%clk 00:51:29]} {[%emt 00:12:50]} Bf8
{[%clk 01:09:10]} {[%emt 00:05:10]} 15. Kh1 {[%clk 00:49:14]} {[%emt 00:02:45]}
h6 {[%clk 01:03:43]} {[%emt 00:05:57]} 16. Rd2 {[%clk 00:47:32]} {[%emt
00:02:12]} Qc7 {[%clk 01:03:21]} {[%emt 00:00:52]} 17. Qe2 {[%clk 00:42:31]}
{[%emt 00:05:31]} Rac8 {[%clk 00:59:24]} {[%emt 00:04:27]} 18. Qf2 {[%clk
00:41:18]} {[%emt 00:01:43]} Qb8 {[%clk 00:56:55]} {[%emt 00:02:59]} 19. Rcd1
{[%clk 00:37:44]} {[%emt 00:04:04]} Ba8 {[%clk 00:53:07]} {[%emt 00:04:18]} 20.
Bd4 {[%clk 00:34:32]} {[%emt 00:03:42]} h5 {[%clk 00:50:55]} {[%emt 00:02:41]}
21. b3 {[%clk 00:32:46]} {[%emt 00:02:17]} Be7 {[%clk 00:50:06]} {[%emt
00:01:19]} 22. Nb4 {[%clk 00:30:09]} {[%emt 00:03:06]} Bb7 {[%clk 00:44:00]}
{[%emt 00:06:36]} 23. Nd3 {[%clk 00:29:51]} {[%emt 00:00:48]} Bd8 {[%clk
00:42:45]} {[%emt 00:01:45]} 24. Qg3 {[%clk 00:25:13]} {[%emt 00:05:08]} b5
{[%clk 00:35:22]} {[%emt 00:07:54]} 25. e5 {[%clk 00:18:53]} {[%emt 00:06:50]}
bxc4 {[%clk 00:30:24]} {[%emt 00:05:27]} 26. exf6 {[%clk 00:15:50]} {[%emt
00:03:33]} cxd3 {[%clk 00:18:33]} {[%emt 00:12:22]} 27. Bxd3 {[%clk 00:16:06]}
{[%emt 00:00:13]} Nf8 {[%clk 00:14:38]} {[%emt 00:04:26]} 28. Bc4 {[%clk
00:13:31]} {[%emt 00:03:06]} d5 {[%clk 00:13:08]} {[%emt 00:02:00]} 29. f4
{[%clk 00:06:54]} {[%emt 00:07:07]} dxc4 {[%clk 00:11:28]} {[%emt 00:02:10]} 30.
Be5 {[%clk 00:05:49]} {[%emt 00:01:35]} Qa8 {[%clk 00:11:42]} {[%emt 00:00:16]}
31. Rd7 {[%clk 00:01:44]} {[%emt 00:04:36]} cxb3 {[%emt 00:03:08]} 32. Qg5
{[%clk 00:01:22]} Nxd7 {[%clk 00:09:37]} {[%emt 00:00:49]} 33. Rxd7 {[%clk
00:01:35]} {[%emt 00:00:17]} Bxg2+ {[%clk 00:09:52]} {[%emt 00:00:15]} 34. Kg1
{[%clk 00:01:41]} {[%emt 00:00:23]} 0-1

[Event "IV Elllobregat Open Chess Tmnt"]
[Site "Sant Boi de Llobregat, Spain"]
[Date "2023.11.30"]
[Round "1.8"]
[White "Puranik, Abhimanyu"]
[Black "Habans Aguerrea, Javier"]
[Result "1/2-1/2"]
[TimeControl "90min/40moves + 15min/end + 30sec from move 1"]
[WhiteFideId "5061245"]
[BlackFideId "24524689"]
[WhiteElo "2627"]
[BlackElo "2345"]

1. e4 {[%clk 01:30:46]} {[%emt 00:00:13]} c6 {[%clk 01:30:47]} {[%emt
00:00:13]} 2. d4 {[%clk 01:31:08]} {[%emt 00:00:08]} d5 {[%clk 01:31:09]}
{[%emt 00:00:08]} 3. f3 {[%clk 01:31:25]} {[%emt 00:00:12]} e6 {[%clk
01:31:12]} {[%emt 00:00:27]} 4. Nc3 {[%clk 01:31:37]} {[%emt 00:00:18]} Bb4
{[%clk 01:31:26]} {[%emt 00:00:16]} 5. Bd2 {[%clk 01:30:39]} {[%emt 00:01:27]}
b6 {[%clk 01:30:58]} {[%emt 00:00:58]} 6. h4 {[%clk 01:10:26]} {[%emt
00:20:43]} Ne7 {[%clk 01:22:59]} {[%emt 00:08:29]} 7. h5 {[%clk 01:05:07]}
{[%emt 00:05:49]} h6 {[%clk 01:23:04]} {[%emt 00:00:26]} 8. Nce2 {[%clk
00:53:03]} {[%emt 00:12:33]} Bxd2+ {[%clk 01:13:23]} {[%emt 00:10:12]} 9. Qxd2
{[%clk 00:53:18]} {[%emt 00:00:14]} c5 {[%clk 01:04:38]} {[%emt 00:09:16]} 10.
exd5 {[%clk 00:51:55]} {[%emt 00:01:54]} Qxd5 {[%clk 00:51:56]} {[%emt
00:13:12]} 11. dxc5 {[%clk 00:44:59]} {[%emt 00:07:26]} Qxc5 {[%clk 00:48:14]}
{[%emt 00:04:12]} 12. O-O-O {[%clk 00:44:38]} {[%emt 00:00:50]} O-O {[%clk
00:47:31]} {[%emt 00:01:14]} 13. Nc3 {[%clk 00:43:41]} {[%emt 00:01:27]} Bb7
{[%clk 00:41:31]} {[%emt 00:06:30]} 14. Bd3 {[%clk 00:41:57]} {[%emt 00:02:14]}
Qa5 {[%clk 00:39:31]} {[%emt 00:02:30]} 15. Qf4 {[%clk 00:38:35]} {[%emt
00:03:52]} Na6 {[%clk 00:29:55]} {[%emt 00:10:06]} 16. a3 {[%clk 00:33:43]}
{[%emt 00:05:22]} Nc5 {[%clk 00:24:17]} {[%emt 00:06:08]} 17. Nge2 {[%clk
00:34:06]} {[%emt 00:00:07]} Rac8 {[%clk 00:22:27]} {[%emt 00:02:20]} 18. Kb1
{[%clk 00:32:14]} {[%emt 00:02:22]} Nxd3 {[%clk 00:11:30]} {[%emt 00:11:28]} 19.
Rxd3 {[%clk 00:32:40]} {[%emt 00:00:03]} Bd5 {[%clk 00:10:08]} {[%emt
00:01:53]} 20. Qd2 {[%clk 00:29:08]} {[%emt 00:04:01]} Bc4 {[%clk 00:08:09]}
{[%emt 00:02:29]} 21. Rd7 {[%clk 00:29:34]} {[%emt 00:00:04]} Nc6 {[%clk
00:08:03]} {[%emt 00:00:37]} 22. Ng3 {[%clk 00:22:51]} {[%emt 00:07:12]} Rfd8
{[%clk 00:05:13]} {[%emt 00:03:20]} 23. Nge4 {[%clk 00:17:53]} {[%emt
00:05:28]} Bd5 {[%clk 00:04:28]} {[%emt 00:01:16]} 24. Nf6+ {[%clk 00:16:34]}
{[%emt 00:01:49]} gxf6 {[%clk 00:02:49]} {[%emt 00:02:09]} 25. Rxd8+ {[%clk
00:11:22]} {[%emt 00:05:42]} Rxd8 {[%clk 00:03:18]} 26. Qxh6 {[%clk 00:11:46]}
{[%emt 00:00:05]} Qc5 {[%clk 00:03:34]} {[%emt 00:00:15]} 27. Qxf6 {[%clk
00:11:45]} {[%emt 00:00:32]} Qd4 {[%clk 00:03:48]} {[%emt 00:00:15]} 28. Qh6
{[%clk 00:11:14]} {[%emt 00:01:00]} Qg7 {[%clk 00:03:46]} {[%emt 00:00:33]} 29.
Qe3 {[%clk 00:11:34]} {[%emt 00:00:09]} Qe5 {[%clk 00:03:06]} {[%emt 00:01:10]}
30. Qh6 {[%clk 00:10:19]} {[%emt 00:01:44]} Qg7 {[%clk 00:03:35]} {[%emt
00:00:02]} 31. Qe3 {[%clk 00:10:42]} {[%emt 00:00:07]} Qe5 {[%clk 00:03:59]}
{[%emt 00:00:06]} 32. Qh6 {[%clk 00:11:03]} {[%emt 00:00:08]} 1/2-1/2